bitfinex-derivatives/quotes_ETHF0:USTF0_20250320
["timestamp","ask_amount","ask_price","bid_price","bid_amount"]
[1742480610607,0.99798,2004.8,2004.7,0.00746733]
[1742480610807,0.99798,2004.8,2004.7,4.68586733]
[1742480612711,2.49462,2005.1,2004.7,4.68586733]
[1742480612912,3.2078,2005.0,2004.9,0.99793]
[1742480613117,0.00746733,2005.2,2005.0,0.99786]
[1742480613317,1.00524733,2005.2,2005.1,4.7872]
[1742480613613,5.72054733,2005.2,2005.1,4.7872]
[1742480614404,0.00746733,2005.2,2005.1,5.78503]
[1742480614608,0.00746733,2005.2,2005.1,9.38003]
[1742480614808,1.00524733,2005.2,2005.1,9.38003]
[1742480615208,0.00746733,2005.2,2005.1,9.38003]
[1742480615409,1.00524733,2005.2,2005.1,9.38003]
[1742480616016,0.00746733,2005.2,2005.1,9.38003]
[1742480616511,7.881,2005.6,2005.4,0.99763]
[1742480616714,3.2078,2005.6,2005.5,0.99763]
[1742480616904,3.2078,2006.1,2005.4,6.4692358]
[1742480617111,0.99739,2006.0,2005.6,5.70176]
[1742480617409,7.881,2006.1,2005.6,5.70176]
[1742480617410,3.2078,2006.1,2006.0,0.99738]
[1742480617611,5.6704,2006.4,2006.0,3.594]
[1742480617916,0.00746733,2006.3,2006.2,0.99728]
[1742480618116,0.00746733,2006.3,2006.2,4.59128]
[1742480623917,0.00746733,2006.3,2005.9,52.9038]
[1742480624129,0.00746733,2006.3,2006.2,0.99728]
[1742480624418,0.99721,2006.4,2006.3,0.99723]
[1742480625518,0.99723,2006.3,2006.2,4.59024]
[1742480625725,0.99723,2006.3,2006.2,3.593]
[1742480625924,2.49286,2006.5,2006.1,0.9973]
[1742480625925,0.99728,2006.2,2006.1,0.9973]
[1742480626126,0.99728,2006.2,2006.1,4.5893]
[1742480626620,0.99737,2006.1,2006.0,0.99736]
[1742480626827,5.70076,2006.5,2006.0,3.592]
[1742480627028,1.7428,2006.4,2006.0,3.592]
[1742480627321,0.99733,2006.2,2006.1,0.9973]
[1742480627514,1.7428,2006.4,2006.0,3.592]
[1742480627720,0.99731,2006.2,2006.1,0.99729]
[1742480628428,0.99733,2006.1,2006.0,4.58935]
[1742480628624,2.70513,2006.1,2006.0,4.58935]
[1742480629027,1.7078,2006.1,2006.0,4.58935]
[1742480629223,0.9973,2006.2,2006.1,0.99728]
[1742480629726,1.7078,2006.3,2006.0,0.99734]
[1742480629727,0.99737,2006.1,2006.0,0.99734]
[1742480629924,0.99731,2006.2,2006.1,0.99729]
[1742480630125,2.70508,2006.3,2006.2,0.99728]
[1742480630427,0.99723,2006.4,2006.3,0.99723]
[1742480631125,1.7078,2006.4,2006.1,1.8152]
[1742480631430,4.2008,2006.4,2006.0,3.592]
[1742480631629,0.99731,2006.2,2006.1,0.99727]
[1742480632231,0.99727,2006.3,2006.2,0.99724]
[1742480633324,0.99728,2006.2,2006.1,2.74179]
[1742480633524,0.99727,2006.3,2006.2,0.99724]
[1742480633728,2.72107,2006.3,2006.2,0.99724]
[1742480634122,0.99728,2006.2,2006.1,2.74179]
[1742480634433,0.99728,2006.2,2006.1,1.7445]
[1742480634634,0.99728,2006.2,2006.1,6.33283]
[1742480634832,0.99733,2006.1,2006.0,0.99735]
[1742480635133,0.99733,2006.1,2006.0,4.58835]
[1742480635134,2.85713,2006.1,2006.0,4.58835]
[1742480635332,2.85713,2006.1,2006.0,6.45805]
[1742480636033,2.85713,2006.1,2006.0,5.4607]
[1742480636635,2.85713,2006.1,2006.0,6.45808]
[1742480637622,2.85713,2006.1,2006.0,3.591]
[1742480638633,2.85713,2006.1,2006.0,4.58838]
[1742480639135,1.695,2006.3,2006.1,0.99728]
[1742480639331,0.99727,2006.3,2006.2,0.99724]
[1742480639639,2.8144,2006.4,2006.3,0.99723]
[1742480639828,2.8144,2006.4,2006.3,4.58823]
[1742480640229,1.8172,2006.4,2006.3,4.58823]
[1742480640629,4.20498,2006.5,2006.4,0.99718]
[1742480640835,5.97968,2006.5,2006.4,2.83558]
[1742480641534,2.77188,2006.5,2006.4,2.83558]
[1742480641741,0.99718,2006.4,2006.3,4.5882]
[1742480641941,2.77188,2006.4,2006.3,6.4266]
[1742480643231,2.77188,2006.4,2006.3,4.5882]
[1742480643537,2.77188,2006.4,2006.3,3.591]
[1742480644040,0.99728,2006.2,2006.1,4.5873]
[1742480644341,0.99728,2006.2,2006.1,3.59]
[1742480644638,0.99728,2006.2,2006.1,4.58733]
[1742480645036,0.99728,2006.2,2006.1,3.59]
[1742480645240,0.99728,2006.2,2006.1,4.58733]
[1742480646234,0.99738,2006.0,2005.9,50.3082]
[1742480646434,0.99738,2006.0,2005.9,54.7605]
[1742480646630,6.24407,2006.1,2006.0,0.99738]
[1742480646828,6.24407,2006.1,2006.0,2.70738]
[1742480647235,2.75583,2006.1,2006.0,3.38558492]
[1742480647434,1.7585,2006.1,2006.0,3.38558492]
[1742480647641,1.7877,2006.4,2006.3,0.99723]
[1742480647843,1.7005,2006.5,2006.4,0.99718]
[1742480647844,0.99715,2006.5,2006.4,0.99718]
[1742480648147,0.99715,2006.5,2006.4,3.38538492]
[1742480648337,3.2078,2007.1,2006.4,4.88820492]
[1742480648638,2.78451,2007.2,2007.1,0.99684]
[1742480648942,2.78451,2007.2,2007.1,42.47419584]
[1742480649344,2.78451,2007.2,2007.1,43.50684]
[1742480649537,2.84585,2007.3,2007.2,0.99679]
[1742480649737,0.99679,2007.2,2007.1,43.5068]
[1742480650044,2.79699,2007.2,2007.1,43.18655553]
[1742480650440,2.79699,2007.2,2007.1,40.8]
[1742480650631,2.79699,2007.2,2007.1,41.79684]
[1742480650832,0.99679,2007.2,2007.1,41.79684]
[1742480651031,0.99679,2007.2,2007.1,41.7968]
[1742480651243,2.79695,2007.3,2007.2,0.99679]
[1742480651443,2.79695,2007.3,2007.2,2.75259]
[1742480651832,2.79695,2007.3,2007.1,40.8]
[1742480651833,0.99679,2007.2,2007.1,41.7968]
[1742480652036,2.79699,2007.2,2007.1,40.8]
[1742480652741,0.99684,2007.1,2007.0,3.589]
[1742480652944,2.33284,2007.1,2007.0,3.589]
[1742480653137,4.03694,2007.1,2007.0,3.589]
[1742480653337,0.99689,2007.0,2006.9,0.00746733]
[1742480653537,2.33289,2007.0,2006.9,0.00746733]
[1742480655149,0.99699,2006.8,2006.7,46.071]
[1742480655336,0.99708,2006.6,2006.5,3.589]
[1742480656041,0.99718,2006.4,2006.3,6.6399]
[1742480656645,0.99718,2006.4,2006.3,7.63713]
[1742480656845,0.99718,2006.4,2006.3,8.31325173]
[1742480657341,0.99723,2006.3,2006.2,46.06]
[1742480657547,2.37083,2006.3,2006.2,51.32160277]
[1742480657847,2.37083,2006.3,2006.2,50.32432277]
[1742480658046,2.37083,2006.3,2006.2,51.32160277]
[1742480658346,2.37083,2006.3,2006.2,52.68718847]
[1742480659546,2.37083,2006.3,2006.2,47.73358847]
[1742480659746,1.3736,2006.3,2006.2,49.14178847]
[1742480659947,3.2078,2006.5,2006.4,0.99718]
[1742480660144,1.3944,2006.8,2006.7,0.99703]
[1742480660339,0.99696,2006.9,2006.8,0.99699]
[1742480660542,2.39136,2006.9,2006.8,3.08081474]
[1742480660743,2.39136,2006.9,2006.8,2.40519]
[1742480661044,2.39134,2006.9,2006.8,42.2082]
[1742480661355,0.99713,2006.5,2006.4,3.2078]
[1742480661539,0.99718,2006.5,2006.4,0.99715]
[1742480661739,0.99718,2006.5,2006.4,40.8]
[1742480661953,0.99718,2006.4,2006.3,5.9361]
[1742480662150,0.99718,2006.4,2006.3,6.61218562]
[1742480662351,0.99718,2006.4,2006.3,47.41218562]
[1742480662552,0.99717,2006.5,2006.4,0.99714]
[1742480662754,0.99718,2006.4,2006.3,48.09469]
[1742480663047,0.99717,2006.5,2006.4,0.99714]
[1742480663241,1.3764,2006.6,2006.5,0.99713]
[1742480663747,2.37348,2006.6,2006.5,0.99713]
[1742480663945,4.20487,2006.7,2006.6,0.99708]
[1742480664253,0.99695,2006.9,2006.8,0.99699]
[1742480664442,2.37334,2006.9,2006.8,0.99699]
[1742480666954,1.3764,2006.9,2006.6,6.7958]
[1742480667158,0.99713,2006.6,2006.5,0.99709]
[1742480667450,0.99713,2006.6,2006.5,5.26124544]
[1742480667654,0.99713,2006.6,2006.5,0.67615544]
[1742480667954,5.70059,2006.6,2006.2,50.64527]
[1742480668253,0.99723,2006.3,2006.2,49.648]
[1742480668453,0.99723,2006.3,2006.2,51.32214133]
[1742480668854,0.99723,2006.3,2006.2,50.64528]
[1742480669047,0.99723,2006.3,2006.2,51.32213744]
[1742480669445,0.99723,2006.4,2006.3,0.99718]
[1742480669651,0.99709,2006.7,2006.6,0.99704]
[1742480670253,0.99717,2006.5,2006.2,48.55317]
[1742480670453,0.99709,2006.7,2006.5,0.99713]
[1742480670454,2.37962,2006.6,2006.5,0.99713]
[1742480670648,2.37962,2006.6,2006.5,1.67399122]
[1742480670952,0.99701,2006.8,2006.7,0.99699]
[1742480671346,2.40211,2006.8,2006.7,0.99699]
[1742480671754,0.99703,2006.7,2006.6,4.58505]
[1742480672057,0.99712,2006.6,2006.5,0.99708]
[1742480672254,2.40216,2006.7,2006.6,0.99708]
[1742480672449,1.4051,2006.7,2006.6,0.99708]
[1742480672752,0.99699,2006.8,2006.7,0.99699]
[1742480672949,4.20477,2006.9,2006.8,0.99699]
[1742480673751,3.2078,2006.9,2006.8,0.99699]
[1742480673943,4.20474,2006.9,2006.8,0.99699]
[1742480674151,5.54004,2006.9,2006.8,0.99699]
[1742480674546,0.99699,2006.8,2006.7,2.33259]
[1742480674752,0.99708,2006.7,2006.6,0.99705]
[1742480674955,0.99708,2006.7,2006.6,1.67402504]
[1742480675251,0.99718,2006.4,2006.3,4.20502]
[1742480675550,0.99718,2006.4,2006.3,4.88236149]
[1742480675746,0.99718,2006.4,2006.3,4.20502]
[1742480676450,1.3353,2006.4,2006.3,4.88257771]
[1742480677154,2.28242,2006.8,2006.7,0.99703]
[1742480677456,50.99692,2007.0,2006.5,3.587]
[1742480677756,50.0,2007.0,2006.9,0.99694]
[1742480678150,50.99689,2007.0,2006.9,0.99694]
[1742480678345,50.0,2007.0,2006.9,0.99694]
[1742480678546,50.0,2007.0,2006.9,1.67416159]
[1742480678952,50.0,2007.0,2006.9,2.95536159]
[1742480679254,50.99689,2007.0,2006.9,2.95536159]
[1742480679449,50.0,2007.0,2006.9,2.95536159]
[1742480679657,50.99689,2007.0,2006.9,2.95536159]
[1742480679847,0.99694,2006.9,2006.8,3.587]
[1742480680050,0.99709,2006.7,2006.4,1.2812]
[1742480680364,0.99709,2006.7,2006.4,3.587]
[1742480680365,0.99713,2006.5,2006.4,3.587]
[1742480680549,0.99718,2006.4,2006.3,0.9972]
[1742480680749,6.37154,2006.6,2006.2,49.647]
[1742480680750,0.99723,2006.3,2006.2,50.64424]
[1742480680950,2.38313,2006.3,2006.2,47.73517822]
[1742480681657,0.99719,2006.5,2006.4,0.99713]
[1742480681853,2.38309,2006.5,2006.4,1.67502822]
[1742480682955,2.38309,2006.5,2006.4,0.99713]
[1742480683261,1.3859,2006.5,2006.4,1.6751523]
[1742480683449,2.38303,2006.5,2006.4,1.6751523]
[1742480683651,0.99706,2006.8,2006.7,0.997]
[1742480683955,2.33626,2006.8,2006.7,0.997]
[1742480684151,0.99708,2006.7,2006.6,0.99705]
[1742480684454,0.99708,2006.7,2006.6,1.67481956]
[1742480685055,1.318,2006.7,2006.6,1.67481956]
[1742480685250,50.0,2007.0,2006.9,0.99694]
[1742480685445,50.0,2007.0,2006.9,1.67426547]
[1742480685650,51.318,2007.0,2006.9,1.67426547]
[1742480685851,51.318,2007.0,2006.9,3.02626547]
[1742480686256,52.31489,2007.0,2006.9,3.02626547]
[1742480686456,51.318,2007.0,2006.9,3.02626547]
[1742480686655,52.31489,2007.0,2006.9,3.02626547]
[1742480686861,0.99694,2006.9,2006.8,4.58395]
[1742480687062,2.29034,2006.9,2006.8,3.587]
[1742480687359,0.99702,2006.8,2006.7,0.99703]
[1742480687562,3.58632,2006.8,2006.7,0.67771857]
[1742480687753,0.99703,2006.7,2006.6,4.58407]
[1742480687948,2.29043,2006.7,2006.6,5.26187659]
[1742480688154,1.2934,2006.7,2006.6,5.26187659]
[1742480688457,2.29043,2006.7,2006.6,5.26189635]
[1742480688861,2.29043,2006.7,2006.6,5.26205877]
[1742480689355,1.2934,2006.7,2006.6,5.26205877]
[1742480689560,0.99708,2006.6,2006.5,0.99712]
[1742480689859,0.99708,2006.6,2006.5,0.67855333]
[1742480690065,0.99717,2006.5,2006.4,0.99717]
[1742480690255,1.3706,2006.5,2006.4,1.67582047]
[1742480690454,1.3706,2006.5,2006.4,3.03602047]
[1742480690664,3.4793,2006.8,2006.7,0.99703]
[1742480690853,50.0,2007.0,2006.7,0.67841179]
[1742480691053,0.99694,2006.9,2006.8,0.67841179]
[1742480691263,50.0,2007.0,2006.6,3.586]
[1742480691465,0.99699,2006.8,2006.7,1.67533075]
[1742480691859,50.0,2007.0,2006.7,0.67831075]
[1742480692060,50.0,2007.0,2006.9,0.99694]
[1742480692365,50.0,2007.0,2006.9,51.32125075]
[1742480692666,50.0,2007.0,2006.9,52.69055075]
[1742480692963,50.0,2007.0,2006.9,93.49055075]
[1742480694559,43.83640199,2007.0,2006.9,93.49055075]
[1742480694766,43.83640199,2007.0,2006.9,95.99055075]
[1742480695362,36.93550199,2007.0,2006.9,95.99055075]
[1742480695663,35.69984199,2007.0,2006.9,95.98934566]
[1742480696061,35.69984199,2007.0,2006.9,95.9893541]
[1742480696457,31.09934199,2007.0,2006.9,95.9893541]
[1742480697068,3.2078,2008.2,2006.9,94.9924141]
[1742480697370,3.2078,2008.2,2008.0,0.99639]
[1742480697371,4.91967,2008.1,2008.0,0.99639]
[1742480697667,0.99641,2008.0,2007.9,0.9964]
[1742480697858,2.39261,2008.0,2007.9,0.9964]
[1742480698063,1.3962,2008.0,2007.9,0.9964]
[1742480698457,1.3962,2008.0,2007.9,2.3562]
[1742480698971,4.21160733,2008.2,2008.0,0.99639]
[1742480699169,1.4214,2008.1,2008.0,0.99639]
[1742480699367,1.4214,2008.1,2008.0,4.58139]
[1742480700263,1.4214,2008.1,2007.7,4.21178733]
[1742480700463,0.99648,2007.9,2007.7,6.80026733]
[1742480700670,2.41789,2007.8,2007.7,7.79677733]
[1742480700865,1.4214,2007.8,2007.7,7.79677733]
[1742480701666,2.4506,2008.0,2007.9,0.99644]
[1742480702162,3.21526733,2008.2,2008.1,0.99634]
[1742480702364,3.21526733,2008.2,2008.1,4.58134]
[1742480702874,3.21526733,2008.2,2008.1,0.99634]
[1742480703072,3.21526733,2008.2,2008.1,4.58134]
[1742480703373,4.63916733,2008.2,2008.1,4.58134]
[1742480703672,4.63916733,2008.2,2008.1,3.585]
[1742480703867,4.63916733,2008.2,2008.1,4.58134]
[1742480704565,5.63545733,2008.2,2008.1,3.585]
[1742480704966,5.63545733,2008.2,2008.1,4.58134]
[1742480705165,4.63916733,2008.2,2008.1,4.58134]
[1742480705666,1.43136733,2008.2,2008.1,4.58134]
[1742480705873,2.48973,2009.1,2008.1,4.58134]
[1742480705874,3.2078,2008.8,2008.5,0.99614]
[1742480706169,1.4109,2009.5,2009.4,0.9957]
[1742480706371,2.40655,2009.5,2009.4,6.7918]
[1742480706671,4.61869385,2009.5,2009.4,3.2078]
[1742480706873,4.61869385,2009.5,2009.4,4.2035]
[1742480707171,3.20779385,2009.5,2009.4,4.2035]
[1742480707361,0.99556,2009.7,2009.4,53.82747]
[1742480707567,2.32602,2009.6,2009.4,52.8318]
[1742480707766,0.99565,2009.5,2009.4,46.031]
[1742480708077,4.53819385,2009.5,2009.2,0.00746733]
[1742480708273,0.99574,2009.3,2009.2,0.00746733]
[1742480708471,3.20779385,2009.3,2009.2,0.00746733]
[1742480708673,3.2078,2009.6,2009.2,0.00746733]
[1742480708878,5.53388385,2009.5,2009.3,3.62]
[1742480709079,0.9957,2009.4,2009.3,3.62]
[1742480709382,5.53389385,2009.4,2009.3,3.62]
[1742480710376,4.53819385,2009.4,2009.3,4.61574]
[1742480710580,5.53391385,2009.4,2009.2,0.00746733]
[1742480710768,5.53391385,2009.4,2009.2,3.62446733]
[1742480710769,4.20353385,2009.3,2009.2,3.62446733]
[1742480710969,5.52133385,2009.3,2009.2,3.62446733]
[1742480711167,6.70343385,2009.3,2009.2,0.00746733]
[1742480711666,5.70769385,2009.3,2009.2,0.00746733]
[1742480711880,4.52559385,2009.3,2009.2,4.62025733]
[1742480712074,1.1821,2009.8,2009.2,3.62446733]
[1742480712379,1.1821,2009.8,2009.5,0.99565]
[1742480712380,1.3178,2009.6,2009.5,0.99565]
[1742480712575,1.3178,2009.6,2009.5,53.84345]
[1742480712975,6.8258,2010.2,2009.5,52.8478]
[1742480713171,4.52559385,2010.1,2009.6,1.3746]
[1742480713380,4.52559385,2010.1,2009.8,0.99548]
[1742480713381,0.99542,2010.0,2009.8,0.99548]
[1742480713581,2.32385,2009.9,2009.8,3.615]
[1742480713782,5.53164385,2009.9,2009.8,3.615]
[1742480714274,4.53619385,2009.9,2009.6,3.62]
[1742480714476,4.53619385,2009.9,2009.7,0.99552]
[1742480714671,4.53619385,2009.9,2009.7,1.4061]
[1742480714980,4.53619385,2009.9,2009.6,4.61558]
[1742480714981,3.20779385,2009.8,2009.6,4.61558]
[1742480715177,1.3284,2009.7,2009.6,4.61558]
[1742480715481,4.53619385,2009.7,2009.6,6.02168]
[1742480715777,4.4628,2010.2,2009.6,6.02168]
[1742480715778,0.99538,2010.1,2009.6,6.02168]
[1742480715976,1.3284,2009.9,2009.8,4.2033]
[1742480716164,3.20779385,2010.0,2009.8,6.8278]
[1742480716369,1.4107,2010.0,2009.9,2.32105]
[1742480716570,4.61849385,2010.0,2009.9,2.32105]
[1742480716979,3.2078,2010.8,2010.4,0.9952]
[1742480717277,2.40585,2010.5,2010.4,3.617]
[1742480717473,0.9953,2010.3,2010.2,3.62]
[1742480717679,0.9953,2010.3,2010.2,3.62746733]
[1742480717866,4.20309385,2010.3,2010.2,3.62746733]
[1742480718070,5.61379385,2010.3,2010.2,3.62746733]
[1742480718275,5.61379385,2010.3,2010.2,0.00746733]
[1742480718471,4.61849385,2010.3,2009.9,4.61944]
[1742480718681,4.61849385,2010.3,2010.0,0.9954]
[1742480718682,7.41093385,2010.2,2010.0,0.9954]
[1742480718879,1.4107,2010.1,2010.0,4.2032]
[1742480719178,0.9954,2010.0,2009.9,3.624]
[1742480719483,3.20779385,2010.0,2009.9,4.6194]
[1742480719678,4.50999385,2010.0,2009.9,4.6194]
[1742480720178,1.3022,2010.0,2009.9,4.6194]
[1742480720476,0.00746733,2010.2,2009.9,3.624]
[1742480720773,0.00746733,2010.2,2010.1,0.99535]
[1742480721174,7.33e-06,2010.2,2010.1,3.49535]
[1742480721482,5.69484,2011.2,2010.6,0.9951]
[1742480721483,0.99502,2010.8,2010.6,0.9951]
[1742480721670,1.3022,2010.7,2010.6,4.6381]
[1742480721870,3.20779385,2011.0,2010.9,0.99495]
[1742480722076,4.50999385,2011.0,2010.9,3.643]
[1742480722375,5.50489385,2011.0,2010.9,3.643]
[1742480723182,0.995,2010.8,2010.7,3.64546733]
[1742480723681,4.20279385,2010.8,2010.7,3.64546733]
[1742480723871,5.57119385,2010.8,2010.7,3.64546733]
[1742480724271,5.57119385,2010.8,2010.7,4.64051733]
[1742480724473,4.57619385,2010.8,2010.7,4.64051733]
[1742480724876,5.57119385,2010.8,2010.7,3.64546733]
[1742480725080,4.57619385,2010.8,2010.7,4.64051733]
[1742480725783,1.1474,2011.1,2011.0,0.9949]
[1742480725981,0.99485,2011.2,2011.0,3.636]
[1742480726176,0.995,2010.8,2010.7,0.00746733]
[1742480726680,4.20279385,2010.8,2010.7,0.00746733]
[1742480727282,0.99515,2010.5,2010.4,3.653]
[1742480727481,0.99525,2010.3,2010.2,3.656]
[1742480727781,0.9953,2010.2,2010.1,3.2078]
[1742480727978,2.5949,2010.2,2010.1,0.99535]
[1742480728181,4.62759385,2010.2,2010.1,0.99535]
[1742480728781,0.99536,2010.1,2010.0,0.99536]
[1742480728980,0.9954,2010.0,2009.9,90.46546733]
[1742480729190,4.20319385,2010.0,2009.9,91.46091733]
[1742480729486,1.3502,2010.0,2009.9,91.46091733]
[1742480729984,2.3456,2010.0,2009.9,91.46091733]
[1742480730186,5.55339385,2010.0,2009.9,90.46546733]
[1742480731084,4.55799385,2010.0,2009.9,91.46091733]
[1742480731286,0.00746733,2010.4,2010.3,0.99525]
[1742480731789,3.21526118,2010.4,2010.3,0.99525]
[1742480731990,4.21046118,2010.4,2010.3,0.99525]
[1742480732179,3.21526118,2010.4,2010.3,0.99525]
[1742480732683,4.21048118,2010.4,2010.3,0.99525]
[1742480732882,4.4149,2010.8,2010.5,0.99512]
[1742480733077,3.20779385,2010.8,2010.7,0.99505]
[1742480733386,3.20779385,2010.7,2010.6,45.984]
[1742480733592,2.41315,2010.7,2010.6,45.984]
[1742480733781,5.62094385,2010.7,2010.6,45.984]
[1742480734792,5.62094385,2010.7,2010.3,3.672]
[1742480734793,0.9952,2010.4,2010.3,3.672]
[1742480735091,0.99527,2010.3,2010.1,45.98]
[1742480735399,1.316,2010.2,2010.1,48.37935]
[1742480735590,3.20779385,2010.5,2010.1,46.6516704]
[1742480735897,0.9953,2010.2,2010.1,45.98]
[1742480736081,0.99528,2010.3,2010.2,0.9953]
[1742480736287,5.51904385,2010.3,2010.2,0.67196035]
[1742480736486,4.52379385,2010.3,2010.2,0.9953]
[1742480736684,4.52379385,2010.3,2010.2,1.66720905]
[1742480737183,3.20779385,2010.3,2010.2,1.66720905]
[1742480737580,4.20304385,2010.3,2010.2,1.66720905]
[1742480737991,0.9953,2010.2,2010.1,45.98]
[1742480738290,0.9953,2010.2,2009.9,44.49746733]
[1742480738291,0.9954,2010.0,2009.9,44.49746733]
[1742480738590,0.9954,2010.0,2009.9,41.48009482]
[1742480738792,4.20319385,2010.0,2009.9,0.00746733]
[1742480738997,5.61009385,2010.0,2009.9,0.00746733]
[1742480739195,5.61009385,2010.0,2009.9,1.67589432]
[1742480739894,3.2078,2010.8,2010.4,0.99516]
[1742480740096,0.9952,2010.4,2010.3,3.718]
[1742480740287,0.9952,2010.4,2010.3,4.39143329]
[1742480740488,1.79077385,2010.4,2010.3,46.18668329]
[1742480740686,1.79077385,2010.4,2010.3,45.19143329]
[1742480740687,2.78597385,2010.4,2010.3,45.19143329]
[1742480740993,2.78597385,2010.4,2010.3,44.518]
[1742480741393,0.99525,2010.3,2010.2,6.9198]
[1742480741594,4.09492385,2010.3,2010.2,6.9198]
[1742480741793,4.09492385,2010.3,2010.2,3.2078]
[1742480741990,4.09495385,2010.3,2010.2,0.9953]
[1742480742291,3.09967385,2010.3,2010.2,1.66960235]
[1742480742496,4.09492385,2010.3,2010.2,0.67430915]
[1742480743090,0.9953,2010.2,2010.1,0.00746733]
[1742480743394,5.30637385,2010.2,2010.1,0.00746733]
[1742480743987,5.30637385,2010.2,2010.1,0.6818283]
[1742480744391,3.09967385,2010.2,2010.1,4.8849783]
[1742480744699,1.79077385,2010.2,2010.1,4.8849783]
[1742480745595,4.14647385,2010.2,2010.1,3.8896283]
[1742480745792,4.14647385,2010.2,2010.1,0.6818283]
[1742480746389,4.14647385,2010.2,2010.1,0.00746733]
[1742480747103,0.99545,2009.9,2009.8,6.9148]
[1742480747393,0.99545,2009.9,2009.8,3.88237134]
[1742480747600,2.78622385,2009.9,2009.8,3.88237134]
[1742480747796,2.78622385,2009.9,2009.8,4.87787134]
[1742480748094,1.79077385,2009.9,2009.8,4.87787134]
[1742480748592,2.78622385,2009.9,2009.8,3.88237134]
[1742480749198,2.78622385,2009.9,2009.8,0.67457134]
[1742480749393,0.99555,2009.7,2009.6,46.98406733]
[1742480749788,2.78632385,2009.7,2009.6,46.98406733]
[1742480749993,4.14812385,2009.7,2009.6,46.98406733]
[1742480750491,4.14812385,2009.7,2009.6,0.00746733]
[1742480751901,6.46452385,2009.7,2009.6,0.00746733]
[1742480752896,0.99579,2009.2,2009.1,4.20362]
[1742480753097,0.99579,2009.2,2009.1,4.20364]
[1742480753288,0.99579,2009.2,2009.1,45.00364]
[1742480753688,2.36329,2009.3,2009.2,0.99579]
[1742480754692,2.36329,2009.3,2009.1,44.0078]
[1742480754693,0.99565,2009.6,2009.5,0.99562]
[1742480754892,2.36315,2009.6,2009.5,4.20342]
[1742480755189,2.48864,2009.9,2009.5,3.2078]
[1742480755389,0.99555,2009.7,2009.6,4.6846]
[1742480755699,2.36302,2009.8,2009.7,0.99555]
[1742480755892,0.99555,2009.7,2009.6,46.78366]
[1742480756191,1.346,2009.7,2009.6,45.4846]
[1742480756389,0.99555,2009.8,2009.7,0.99555]
[1742480756589,2.34155,2009.8,2009.7,0.99555]
[1742480756897,1.1746,2009.9,2009.8,0.99545]
[1742480756898,0.99548,2009.9,2009.8,0.99545]
[1742480757200,2.34145,2009.9,2009.8,4.20325]
[1742480757396,1.346,2009.9,2009.8,4.20325]
[1742480757995,2.34145,2009.9,2009.8,4.20325]
[1742480758196,2.34145,2009.9,2009.8,3.2078]
[1742480758594,1.346,2009.9,2009.6,90.482]
[1742480758799,0.99552,2009.8,2009.7,0.99551]
[1742480759004,0.99555,2009.7,2009.6,91.47756]
[1742480759193,0.99555,2009.7,2009.6,90.482]
[1742480759387,0.99553,2009.8,2009.7,0.99552]
[1742480759590,1.3951,2009.8,2009.7,0.99552]
[1742480759999,2.39064,2009.8,2009.7,0.99555]
[1742480760202,0.99555,2009.7,2009.6,49.667]
[1742480760399,0.9956,2009.6,2009.5,3.2078]
[1742480760603,0.99574,2009.4,2009.3,0.99572]
[1742480760793,7.56729,2009.5,2008.9,0.38684649]
[1742480760992,4.76658,2009.7,2009.4,0.99566]
[1742480761298,0.99576,2009.4,2009.3,0.99572]
[1742480762293,0.99574,2009.3,2009.2,3.685]
[1742480762493,1.421,2009.3,2009.2,0.99579]
[1742480762799,0.99579,2009.2,2009.1,4.20361]
[1742480763199,2.41678,2009.3,2009.2,0.99579]
[1742480763596,0.99579,2009.2,2009.1,4.2036]
[1742480763900,2.41679,2009.2,2009.1,4.20364]
[1742480764297,0.99589,2009.0,2008.9,0.00746733]
[1742480764999,2.30599,2009.0,2008.9,0.00746733]
[1742480766107,2.30599,2009.0,2008.5,3.2078]
[1742480766108,0.99609,2008.6,2008.5,3.2078]
[1742480766302,0.99609,2008.6,2008.5,4.20394]
[1742480766497,0.99609,2008.6,2008.5,3.2078]
[1742480766694,0.99624,2008.3,2008.2,53.87507]
[1742480767504,0.99624,2008.3,2008.2,49.2038]
[1742480767807,0.99624,2008.3,2008.2,45.996]
[1742480768703,0.99634,2008.1,2008.0,0.00746733]
[1742480769094,2.38712,2008.2,2008.0,0.00746733]
[1742480769306,0.99634,2008.1,2008.0,1.00383733]
[1742480769505,2.38714,2008.1,2008.0,1.00383733]
[1742480769703,1.3908,2008.1,2008.0,1.00383733]
[1742480770097,0.00746733,2008.5,2008.3,0.99624]
[1742480770296,0.00746733,2008.5,2008.0,2.49842733]
[1742480770297,0.99631,2008.2,2008.1,0.99631]
[1742480770497,6.16683733,2008.5,2008.0,0.00746733]
[1742480770498,0.99634,2008.1,2008.0,0.00746733]
[1742480770810,2.13034,2008.1,2008.0,0.00746733]
[1742480772007,10.17144,2008.1,2008.0,0.00746733]
[1742480772205,2.49102,2008.0,2007.6,4.20438]
[1742480772407,0.99654,2007.7,2007.6,3.2078]
[1742480772708,0.99653,2007.8,2007.6,4.20435]
[1742480772921,2.41954,2007.7,2007.6,3.2078]
[1742480773206,0.99669,2007.4,2007.3,3.2078]
[1742480773601,0.99669,2007.4,2007.3,4.20454]
[1742480773803,0.99669,2007.4,2007.3,3.2078]
[1742480774413,0.99674,2007.3,2007.2,2.40895]
[1742480774609,2.41294,2007.3,2007.2,2.40895]
[1742480774808,0.99679,2007.2,2007.1,46.01946733]
[1742480775014,2.41299,2007.2,2007.1,0.00746733]
[1742480775514,1.4162,2007.2,2007.1,2.41650733]
[1742480775715,1.4162,2007.4,2007.3,0.99669]
[1742480776009,1.4162,2007.4,2007.3,4.20449]
[1742480776214,1.4162,2007.4,2007.3,0.99669]